[Event "Icelandic-ch 2021"]
[Site "Kopavogur"]
[Date "2021.04.23"]
[Round "2.3"]
[White "Kjartansson, Gudmundur"]
[Black "Bjornsson, Sigurbjorn"]
[Result "1-0"]
[ECO "E71"]
[WhiteElo "2503"]
[BlackElo "2327"]
[Annotator "RC"]
[PlyCount "71"]
[EventDate "2021.04.22"]
[EventType "tourn"]
[EventCountry "ISL"]
[SourceTitle "playchess.com"]
[Source "ChessBase"]
[SourceQuality "1"]
[TimeControl "40/5400+30:1800+30"]

1. d4 {[%emt 0:00:00]} Nf6 {[%emt 0:00:00]} 2. c4 {[%emt 0:00:00]} g6 {[%emt 0:00:00]} 3. Nc3 {[%emt 0:00:00]} Bg7 {[%emt 0:00:06]} 4. e4 {[%emt 0:00:03]} d6 {[%emt 0:00:00]} 5. h3 {[%emt 0:00:09]} O-O {[%emt 0:00:03]} 6. Be3 {[%emt 0:00:12]} Nc6 {[%emt 0:02:35]} 7. d5 {[%emt 0:10:33]} Ne5 {[%emt 0:00:06]} 8. f4 {[%emt 0:00:59]} Ned7 {[%emt 0:00:30]} 9. g4 {[%emt 0:02:06]} e6 {[%emt 0:07:24]} 10. dxe6 {[%emt 0:05:02]} fxe6 {[%emt 0:00:54]} 11. Bg2 {[%emt 0:00:24]} Nb6 {[%emt 0:07:42]} 12. Qd3 {[%emt 0:01:33]} Bd7 {[%emt 0:06:29]} 13. Nge2 {[%emt 0:01:26]} Bc6 {[%emt 0:03:17]} 14. O-O {[%emt 0:03:47]} Qe8 {[%emt 0:09:58]} 15. Rae1 {[%emt 0:06:47]} e5 {[%emt 0:01:42]} 16. f5 {[%emt 0:02:02]} gxf5 {[%emt 0:00:29]} 17. Rxf5 {[%emt 0:04:27]} Bd7 {[%emt 0:04:53]} 18. Rff1 {[%emt 0:04:55]} Be6 {[%emt 0:03:00]} 19. b3 {[%emt 0:00:09]} Qg6 {[%emt 0:15:20]} 20. Ng3 {[%emt 0:02:19]} Bh6 {[%emt 0:05:47]} 21. Nf5 {[%emt 0:01:56]} Bxe3+ {[%emt 0:01:13]} 22. Qxe3 {[%emt 0:00:23]} Kh8 {[%emt 0:00:25]} 23. Rf2 {[%emt 0:02:38]} Rf7 {[%emt 0:04:53]} 24. Ref1 {[%emt 0:02:27]} Ng8 {[%emt 0:08:20]} 25. Nb5 {[%emt 0:17:43]} Rd7 {[%emt 0:06:45]} 26. Bf3 {[%emt 0:04:45]} d5 {[%emt 0:05:02]} 27. Nh4 {[%emt 0:06:13]} Qf6 {[%emt 0:00:43]} 28. exd5 {[%emt 0:00:38]} Qxh4 {[%emt 0:02:00]} 29. dxe6 {[%emt 0:00:24]} Rg7 {[%emt 0:00:24]} 30. Bg2 {[%emt 0:03:22]} Re8 {[%emt 0:02:38]} 31. Qxe5 {[%emt 0:02:23]} Nd7 {[%emt 0:00:57]} 32. Qd4 {[%emt 0:04:25]} Rxe6 {[%emt 0:00:36]} 33. Nxc7 {[%emt 0:00:14]} Rf6 {[%emt 0:01:20]} 34. Ne8 {[%emt 0:00:28]} Rgf7 {[%emt 0:00:47]} 35. Nxf6 {[%emt 0:01:28]} Ndxf6 {[%emt 0:00:32]} 36. Qc3 {[%emt 0:01:23]} 1-0

[Event "Icelandic-ch 2021"]
[Site "Kopavogur"]
[Date "2021.04.24"]
[Round "3.1"]
[White "Mai, Alexander Oliver"]
[Black "Hjartarson, Johann"]
[Result "0-1"]
[ECO "B06"]
[WhiteElo "2025"]
[BlackElo "2523"]
[Annotator "ChessBase"]
[PlyCount "72"]
[EventDate "2021.04.22"]
[EventType "tourn"]
[EventCountry "ISL"]
[SourceTitle "playchess.com"]
[Source "ChessBase"]
[SourceQuality "1"]
[TimeControl "40/5400+30:1800+30"]

1. d4 {[%emt 0:00:00]} d6 {[%emt 0:00:38]} 2. e4 {[%emt 0:01:29]} g6 {[%emt 0:00:45]} 3. Nf3 {[%emt 0:01:43]} Bg7 {[%emt 0:00:26]} 4. Bc4 {[%emt 0:00:44]} Nf6 {[%emt 0:00:42]} 5. Qe2 {[%emt 0:00:51]} O-O {[%emt 0:00:53]} 6. e5 {[%emt 0:03:39]} dxe5 {[%emt 0:05:44]} 7. dxe5 {[%emt 0:00:15]} Nd5 {[%emt 0:00:05]} 8. O-O {[%emt 0:01:43]} Nb6 {[%emt 0:04:17]} 9. Rd1 {[%emt 0:17:26]} Qe8 {[%emt 0:00:47]} 10. Bd3 {[%emt 0:03:40]} Nc6 {[%emt 0:01:59]} 11. h3 {[%emt 0:00:40]} Nb4 {[%emt 0:06:17]} 12. Be4 {[%emt 0:01:36]} f5 {[%emt 0:01:34]} 13. exf6 {[%emt 0:00:06]} exf6 {[%emt 0:00:06]} 14. Re1 {[%emt 0:12:16]} Qf7 {[%emt 0:01:33]} 15. a3 {[%emt 0:02:58]} Na6 {[%emt 0:05:00]} 16. Nc3 {[%emt 0:02:39]} Nc5 {[%emt 0:02:42]} 17. Be3 {[%emt 0:02:23]} Nxe4 {[%emt 0:00:11]} 18. Nxe4 {[%emt 0:00:13]} Bd7 {[%emt 0:07:02]} 19. Nc5 {[%emt 0:03:23]} Bc6 {[%emt 0:01:25]} 20. Rad1 {[%emt 0:04:03]} Rae8 {[%emt 0:03:05]} 21. Nd4 {[%emt 0:02:37]} Bd5 {[%emt 0:01:13]} 22. b3 {[%emt 0:06:55]} f5 {[%emt 0:00:39]} 23. Qd3 {[%emt 0:12:51]} f4 {[%emt 0:12:02]} 24. Bc1 {[%emt 0:00:52]} Qf6 {[%emt 0:08:43]} 25. Rxe8 {[%emt 0:03:27]} Rxe8 {[%emt 0:00:03]} 26. Nf3 {[%emt 0:04:54]} Qc6 {[%emt 0:05:51]} 27. b4 {[%emt 0:00:58]} Bc4 {[%emt 0:05:00]} 28. Qd2 {[%emt 0:00:17]} Nd5 {[%emt 0:01:34]} 29. Nd4 {[%emt 0:00:32]} Qf6 {[%emt 0:01:38]} 30. Bb2 {[%emt 0:00:46]} f3 {[%emt 0:02:58]} 31. g3 {[%emt 0:00:56]} b6 {[%emt 0:00:48]} 32. Ncb3 {[%emt 0:00:32]} Qf7 {[%emt 0:03:51]} 33. Re1 {[%emt 0:01:25]} Rxe1+ {[%emt 0:00:54]} 34. Qxe1 {[%emt 0:00:02]} Bxb3 {[%emt 0:00:30]} 35. cxb3 {[%emt 0:01:42]} c5 {[%emt 0:00:18]} 36. bxc5 {[%emt 0:00:16]} bxc5 {[%emt 0:00:03]} 0-1

[Event "Icelandic-ch 2021"]
[Site "Kopavogur"]
[Date "2021.04.24"]
[Round "3.2"]
[White "Gretarsson, Helgi Ass"]
[Black "Stefansson, Vignir Vatnar"]
[Result "0-1"]
[ECO "C00"]
[WhiteElo "2437"]
[BlackElo "2327"]
[Annotator "NA"]
[PlyCount "118"]
[EventDate "2021.04.22"]
[EventType "tourn"]
[EventCountry "ISL"]
[SourceTitle "playchess.com"]
[Source "ChessBase"]
[SourceQuality "1"]
[TimeControl "40/5400+30:1800+30"]

1. Nf3 {[%emt 0:00:00]} d5 {[%emt 0:00:02]} 2. g3 {[%emt 0:00:07]} Nf6 {[%emt 0:00:11]} 3. Bg2 {[%emt 0:00:06]} e6 {[%emt 0:00:12]} 4. O-O {[%emt 0:00:09]} Be7 {[%emt 0:00:06]} 5. d3 {[%emt 0:07:42]} c5 {[%emt 0:00:08]} 6. Nbd2 {[%emt 0:00:06]} Nc6 {[%emt 0:00:05]} 7. e4 {[%emt 0:00:06]} O-O {[%emt 0:00:58]} 8. Re1 {[%emt 0:00:13]} Qc7 {[%emt 0:02:52]} 9. Qe2 {[%emt 0:07:31]} b5 {[%emt 0:02:11]} 10. e5 {[%emt 0:06:16]} Nd7 {[%emt 0:00:10]} 11. Nf1 {[%emt 0:00:03]} a5 {[%emt 0:00:15]} 12. h4 {[%emt 0:10:45]} Ba6 {[%emt 0:00:23]} 13. Bf4 {[%emt 0:05:53]} Rfc8 {[%emt 0:01:19]} 14. Ne3 {[%emt 0:03:30]} Qd8 {[%emt 0:12:21]} 15. Ng4 {[%emt 0:04:04]} Bf8 {[%emt 0:07:07]} 16. h5 {[%emt 0:08:56]} h6 {[%emt 0:00:20]} 17. Bh3 {[%emt 0:04:40]} b4 {[%emt 0:05:55]} 18. Qd1 {[%emt 0:03:05]} a4 {[%emt 0:05:22]} 19. Rb1 {[%emt 0:04:22]} a3 {[%emt 0:10:01]} 20. b3 {[%emt 0:00:09]} Na7 {[%emt 0:00:27]} 21. Bd2 {[%emt 0:10:13]} Nb5 {[%emt 0:01:31]} 22. Nh4 Nc3 23. Bxc3 {[%emt 0:01:22]} bxc3 {[%emt 0:07:15]} 24. f4 {[%emt 0:00:25]} Be7 {[%emt 0:01:17]} 25. Ng2 {[%emt 0:00:05]} d4 {[%emt 0:04:48]} 26. Nf2 {[%emt 0:02:15]} Qc7 {[%emt 0:01:51]} 27. Ne4 {[%emt 0:04:01]} Bb7 {[%emt 0:01:10]} 28. Qf3 {[%emt 0:02:59]} Rf8 {[%emt 0:02:14]} 29. Qf2 {[%emt 0:01:26]} Kh8 {[%emt 0:02:05]} 30. Kh2 {[%emt 0:06:50]} Rae8 {[%emt 0:00:57]} 31. Re2 {[%emt 0:00:39]} Bd5 {[%emt 0:02:23]} 32. Rf1 {[%emt 0:01:01]} Nb8 {[%emt 0:05:27]} 33. Ne1 {[%emt 0:01:50]} Nc6 {[%emt 0:01:27]} 34. Nf3 {[%emt 0:00:01]} Nb4 {[%emt 0:00:21]} 35. Ra1 {[%emt 0:00:01]} Qb7 {[%emt 0:05:36]} 36. f5 {[%emt 0:03:16]} exf5 {[%emt 0:11:07]} 37. Bxf5 {[%emt 0:00:02]} Qc6 {[%emt 0:00:09]} 38. Qg2 {[%emt 0:03:22]} Be6 {[%emt 0:01:31]} 39. Qh3 {[%emt 0:01:04]} Qd7 {[%emt 0:03:20]} 40. Bxe6 {[%emt 0:00:00]} Qxe6 {[%emt 0:00:00]} 41. Kg2 {[%emt 0:11:09]} Ra8 {[%emt 0:08:03]} 42. Qxe6 {[%emt 0:15:48]} fxe6 {[%emt 0:00:05]} 43. Nd6 {[%emt 0:00:05]} Bxd6 {[%emt 0:06:47]} 44. exd6 {[%emt 0:00:05]} Rad8 {[%emt 0:00:56]} 45. Ne5 {[%emt 0:00:08]} Rxd6 {[%emt 0:00:45]} 46. Ng6+ {[%emt 0:00:45]} Kg8 {[%emt 0:00:04]} 47. Nxf8 {[%emt 0:00:05]} Kxf8 {[%emt 0:00:02]} 48. Rf2+ {[%emt 0:02:54]} Ke7 {[%emt 0:00:59]} 49. Raf1 {[%emt 0:00:04]} Ra6 {[%emt 0:00:37]} 50. g4 {[%emt 0:03:58]} Kd6 {[%emt 0:03:54]} 51. g5 {[%emt 0:00:30]} hxg5 {[%emt 0:01:12]} 52. Kg3 {[%emt 0:00:38]} Nxa2 {[%emt 0:02:58]} 53. Kg4 {[%emt 0:00:06]} Ra5 {[%emt 0:11:24]} 54. Kxg5 {[%emt 0:01:03]} c4+ {[%emt 0:00:24]} 55. Kg6 {[%emt 0:00:06]} cxb3 {[%emt 0:00:30]} 56. cxb3 {[%emt 0:00:06]} Nb4 {[%emt 0:00:04]} 57. Rh2 {[%emt 0:00:21]} a2 {[%emt 0:00:50]} 58. Ra1 {[%emt 0:00:19]} Ra7 {[%emt 0:00:45]} 59. Rf2 {[%emt 0:01:17]} c2 {[%emt 0:00:30]} 0-1

[Event "Icelandic-ch 2021"]
[Site "Kopavogur"]
[Date "2021.04.24"]
[Round "3.3"]
[White "Bjornsson, Sigurbjorn"]
[Black "Thorfinnsson, Bragi"]
[Result "0-1"]
[ECO "C40"]
[WhiteElo "2327"]
[BlackElo "2432"]
[Annotator "NA"]
[PlyCount "36"]
[EventDate "2021.04.22"]
[EventType "tourn"]
[EventCountry "ISL"]
[SourceTitle "playchess.com"]
[Source "ChessBase"]
[SourceQuality "1"]
[TimeControl "40/5400+30:1800+30"]

1. e4 {[%emt 0:00:00]} e5 {[%emt 0:00:00]} 2. Nf3 {[%emt 0:00:06]} d5 {[%emt 0:00:09]} 3. Nxe5 {[%emt 0:01:55]} Bd6 {[%emt 0:00:21]} 4. d4 {[%emt 0:01:24]} dxe4 {[%emt 0:00:13]} 5. Bf4 {[%emt 0:05:55]} Nf6 {[%emt 0:02:19]} 6. Bc4 {[%emt 0:02:30]} O-O {[%emt 0:00:45]} 7. O-O {[%emt 0:00:46]} Nc6 {[%emt 0:02:27]} 8. Nxc6 {[%emt 0:01:29]} bxc6 {[%emt 0:00:23]} 9. Bg5 {[%emt 0:02:49]} h6 {[%emt 0:03:47]} 10. Bh4 {[%emt 0:00:28]} Rb8 {[%emt 0:01:18]} 11. Nc3 {[%emt 0:02:15]} Bf5 {[%emt 0:06:34]} 12. Re1 {[%emt 0:07:52]} Re8 {[%emt 0:03:04]} 13. b3 {[%emt 0:09:48]} g5 {[%emt 0:11:39]} 14. Bg3 {[%emt 0:00:36]} Bb4 {[%emt 0:00:49]} 15. Qd2 {[%emt 0:03:39]} e3 {[%emt 0:01:08]} 16. Rxe3 {[%emt 0:02:08]} Ne4 {[%emt 0:00:27]} 17. Rxe4 {[%emt 0:09:05]} Rxe4 {[%emt 0:00:56]} 18. d5 {[%emt 0:15:43]} Qf6 {[%emt 0:03:15]} 0-1

[Event "Icelandic-ch 2021"]
[Site "Kopavogur"]
[Date "2021.04.24"]
[Round "3.4"]
[White "Stefansson, Hannes"]
[Black "Kjartansson, Gudmundur"]
[Result "1/2-1/2"]
[ECO "C11"]
[WhiteElo "2532"]
[BlackElo "2503"]
[Annotator "ChessBase"]
[PlyCount "100"]
[EventDate "2021.04.22"]
[EventType "tourn"]
[EventCountry "ISL"]
[SourceTitle "playchess.com"]
[Source "ChessBase"]
[SourceQuality "1"]
[TimeControl "40/5400+30:1800+30"]

1. e4 {[%emt 0:00:00]} e6 {[%emt 0:00:00]} 2. d4 {[%emt 0:00:14]} d5 {[%emt 0:00:00]} 3. Nc3 {[%emt 0:00:26]} Nf6 {[%emt 0:00:57]} 4. e5 {[%emt 0:01:38]} Nfd7 {[%emt 0:00:05]} 5. f4 {[%emt 0:01:16]} c5 {[%emt 0:00:04]} 6. Nf3 {[%emt 0:00:37]} Nc6 {[%emt 0:00:05]} 7. Be3 {[%emt 0:01:58]} Be7 {[%emt 0:00:36]} 8. Qd2 {[%emt 0:02:52]} O-O {[%emt 0:00:41]} 9. dxc5 {[%emt 0:02:17]} Qa5 {[%emt 0:01:20]} 10. a3 {[%emt 0:08:31]} Bxc5 {[%emt 0:01:03]} 11. Bxc5 {[%emt 0:02:33]} Nxc5 {[%emt 0:00:20]} 12. O-O-O {[%emt 0:02:00]} Rd8 {[%emt 0:02:02]} 13. h4 {[%emt 0:13:50]} Bd7 {[%emt 0:26:32]} 14. Rh3 {[%emt 0:12:14]} Rac8 {[%emt 0:01:53]} 15. Kb1 {[%emt 0:04:04]} Be8 {[%emt 0:08:51]} 16. Nd4 {[%emt 0:10:49]} Nxd4 {[%emt 0:00:30]} 17. Qxd4 {[%emt 0:00:30]} Ne4 {[%emt 0:00:30]} 18. Be2 {[%emt 0:00:30]} Nxc3+ {[%emt 0:00:30]} 19. Rxc3 {[%emt 0:00:30]} Rxc3 {[%emt 0:00:30]} 20. Qxc3 {[%emt 0:00:30]} Qxc3 {[%emt 0:00:30]} 21. bxc3 {[%emt 0:00:30]} Rc8 {[%emt 0:00:30]} 22. Kb2 {[%emt 0:00:30]} Kf8 {[%emt 0:00:30]} 23. Rd4 {[%emt 0:00:30]} b5 {[%emt 0:00:30]} 24. Rd3 {[%emt 0:09:40]} Rc4 {[%emt 0:18:08]} 25. Rd4 {[%emt 0:00:44]} Rc5 {[%emt 0:01:02]} 26. Rd3 {[%emt 0:00:14]} f6 {[%emt 0:02:20]} 27. Re3 {[%emt 0:01:08]} f5 {[%emt 0:06:17]} 28. Kb3 {[%emt 0:05:42]} a5 {[%emt 0:06:29]} 29. Kb2 {[%emt 0:01:42]} Rc7 {[%emt 0:04:18]} 30. Kc1 {[%emt 0:01:12]} Ke7 {[%emt 0:00:59]} 31. Kd2 {[%emt 0:00:21]} Kd8 {[%emt 0:04:13]} 32. Rh3 {[%emt 0:02:32]} Kc8 {[%emt 0:07:00]} 33. Rh1 {[%emt 0:00:51]} Rc5 {[%emt 0:01:33]} 34. Rb1 {[%emt 0:03:02]} Kc7 {[%emt 0:00:52]} 35. g3 {[%emt 0:01:47]} h5 {[%emt 0:00:30]} 36. Bd3 {[%emt 0:01:09]} g6 {[%emt 0:00:19]} 37. Be2 {[%emt 0:00:48]} Bd7 {[%emt 0:00:28]} 38. Bd3 {[%emt 0:00:14]} Kb6 {[%emt 0:02:49]} 39. Rb2 {[%emt 0:02:22]} Rc7 {[%emt 0:01:07]} 40. Rb1 {[%emt 0:00:00]} Kc5 {[%emt 0:00:00]} 41. Be2 {[%emt 0:03:24]} Rb7 {[%emt 0:06:21]} 42. Bd3 {[%emt 0:05:06]} d4 {[%emt 0:06:42]} 43. cxd4+ {[%emt 0:01:09]} Kxd4 {[%emt 0:00:05]} 44. c3+ {[%emt 0:01:46]} Kc5 {[%emt 0:00:19]} 45. Ke3 {[%emt 0:05:51]} Bc6 {[%emt 0:01:14]} 46. Be2 {[%emt 0:00:29]} Bd5 {[%emt 0:04:36]} 47. Rd1 {[%emt 0:00:43]} Rc7 {[%emt 0:01:26]} 48. Rd4 {[%emt 0:01:30]} Rc8 {[%emt 0:04:00]} 49. Bf1 {[%emt 0:02:38]} Rc7 {[%emt 0:00:28]} 50. Be2 {[%emt 0:00:23]} Rc8 {[%emt 0:00:05]} 1/2-1/2

[Event "Icelandic-ch 2021"]
[Site "Kopavogur"]
[Date "2021.04.24"]
[Round "3.5"]
[White "Gretarsson, Hjorvar Steinn"]
[Black "Thorfinnsson, Bjorn"]
[Result "1-0"]
[ECO "A01"]
[WhiteElo "2588"]
[BlackElo "2384"]
[Annotator "ChessBase"]
[PlyCount "71"]
[EventDate "2021.04.22"]
[EventType "tourn"]
[EventCountry "ISL"]
[SourceTitle "playchess.com"]
[Source "ChessBase"]
[SourceQuality "1"]
[TimeControl "40/5400+30:1800+30"]

1. b3 {[%emt 0:02:35]} c5 {[%emt 0:05:36]} 2. Bb2 {[%emt 0:00:24]} Nc6 {[%emt 0:00:09]} 3. e3 {[%emt 0:02:07]} e5 {[%emt 0:08:54]} 4. Bb5 {[%emt 0:06:10]} d6 {[%emt 0:02:53]} 5. d4 {[%emt 0:06:53]} cxd4 {[%emt 0:19:56]} 6. exd4 {[%emt 0:00:14]} Bd7 {[%emt 0:00:29]} 7. Qe2 {[%emt 0:20:00]} Be7 {[%emt 0:08:22]} 8. Nf3 {[%emt 0:07:23]} Nxd4 {[%emt 0:19:37]} 9. Nxd4 {[%emt 0:00:30]} exd4 {[%emt 0:00:30]} 10. Bxd4 {[%emt 0:00:30]} Nf6 {[%emt 0:00:30]} 11. Bxf6 {[%emt 0:00:30]} Qa5+ {[%emt 0:00:30]} 12. Nc3 {[%emt 0:00:30]} gxf6 {[%emt 0:00:30]} 13. Bxd7+ {[%emt 0:00:30]} Kxd7 {[%emt 0:00:30]} 14. Qb5+ {[%emt 0:00:30]} Qxb5 {[%emt 0:00:30]} 15. Nxb5 {[%emt 0:00:30]} Rac8 {[%emt 0:04:23]} 16. c4 {[%emt 0:31:36]} a6 {[%emt 0:00:49]} 17. Nc3 {[%emt 0:00:18]} b5 {[%emt 0:01:41]} 18. Nd5 {[%emt 0:00:11]} Bd8 {[%emt 0:00:14]} 19. Rc1 {[%emt 0:06:17]} bxc4 {[%emt 0:09:22]} 20. bxc4 {[%emt 0:01:08]} Rg8 {[%emt 0:00:21]} 21. g3 {[%emt 0:01:08]} Rb8 {[%emt 0:02:16]} 22. Kd2 {[%emt 0:01:11]} Rb2+ {[%emt 0:03:01]} 23. Rc2 {[%emt 0:00:07]} Rb7 {[%emt 0:00:08]} 24. Ke3 {[%emt 0:01:06]} Re8+ {[%emt 0:00:26]} 25. Kf3 {[%emt 0:00:29]} Kc6 {[%emt 0:00:52]} 26. Rd1 {[%emt 0:00:28]} Re5 {[%emt 0:02:12]} 27. Rd3 {[%emt 0:01:29]} Rf5+ {[%emt 0:02:16]} 28. Kg4 {[%emt 0:00:33]} Rg5+ {[%emt 0:00:32]} 29. Kf4 {[%emt 0:00:38]} Re5 {[%emt 0:00:17]} 30. f3 {[%emt 0:02:11]} a5 {[%emt 0:03:32]} 31. h4 {[%emt 0:01:01]} Rb1 {[%emt 0:00:57]} 32. Nc3 {[%emt 0:01:02]} Rb4 {[%emt 0:00:49]} 33. Ne4 {[%emt 0:00:31]} Be7 {[%emt 0:00:05]} 34. a3 {[%emt 0:01:20]} Rb1 {[%emt 0:01:56]} 35. Rcd2 {[%emt 0:03:05]} Rb6 {[%emt 0:01:42]} 36. Nxd6 {[%emt 0:00:02]} 1-0

[Event "Icelandic-ch 2021"]
[Site "Kopavogur"]
[Date "2021.04.25"]
[Round "4.1"]
[White "Hjartarson, Johann"]
[Black "Thorfinnsson, Bjorn"]
[Result "0-1"]
[ECO "D66"]
[WhiteElo "2523"]
[BlackElo "2384"]
[Annotator "ChessBase"]
[PlyCount "106"]
[EventDate "2021.04.22"]
[EventType "tourn"]
[EventCountry "ISL"]
[SourceTitle "playchess.com"]
[Source "ChessBase"]
[SourceQuality "1"]
[TimeControl "40/5400+30:1800+30"]

1. d4 {[%emt 0:00:00]} d5 {[%emt 0:02:23]} 2. c4 {[%emt 0:00:00]} e6 {[%emt 0:00:08]} 3. Nc3 {[%emt 0:01:46]} Be7 {[%emt 0:00:22]} 4. Nf3 {[%emt 0:01:11]} Nf6 {[%emt 0:00:15]} 5. Bg5 {[%emt 0:00:34]} c6 {[%emt 0:04:51]} 6. e3 {[%emt 0:00:26]} O-O {[%emt 0:05:14]} 7. Rc1 {[%emt 0:03:20]} Re8 {[%emt 0:10:21]} 8. Bd3 {[%emt 0:01:37]} Nbd7 {[%emt 0:02:43]} 9. O-O {[%emt 0:00:19]} dxc4 {[%emt 0:01:04]} 10. Bxc4 {[%emt 0:00:08]} Nd5 {[%emt 0:00:11]} 11. Bxe7 {[%emt 0:00:36]} Qxe7 {[%emt 0:00:41]} 12. e4 {[%emt 0:06:46]} N5b6 {[%emt 0:01:16]} 13. Bb3 {[%emt 0:01:00]} e5 {[%emt 0:07:50]} 14. d5 {[%emt 0:05:50]} Nc5 {[%emt 0:04:24]} 15. Bc2 {[%emt 0:01:15]} Bg4 {[%emt 0:01:44]} 16. h3 {[%emt 0:05:55]} Bh5 {[%emt 0:01:53]} 17. Re1 {[%emt 0:11:04]} Rad8 {[%emt 0:01:39]} 18. g4 {[%emt 0:10:29]} Bg6 {[%emt 0:00:36]} 19. b4 {[%emt 0:00:27]} Na6 {[%emt 0:13:30]} 20. a3 {[%emt 0:04:37]} Nc7 {[%emt 0:03:43]} 21. Bb3 {[%emt 0:01:13]} Qf6 {[%emt 0:02:47]} 22. Re3 {[%emt 0:19:53]} Ne6 {[%emt 0:03:33]} 23. a4 {[%emt 0:01:20]} Nf4 {[%emt 0:01:39]} 24. h4 {[%emt 0:04:58]} h5 {[%emt 0:08:06]} 25. g5 {[%emt 0:00:35]} Qe7 {[%emt 0:00:09]} 26. a5 {[%emt 0:02:27]} Nc8 {[%emt 0:03:15]} 27. a6 {[%emt 0:03:15]} b5 {[%emt 0:07:53]} 28. Qf1 {[%emt 0:00:57]} Qxb4 {[%emt 0:00:59]} 29. Na2 {[%emt 0:00:11]} Qa5 {[%emt 0:00:52]} 30. Rxc6 {[%emt 0:00:27]} Nd6 {[%emt 0:00:18]} 31. Nc3 {[%emt 0:05:44]} b4 {[%emt 0:00:45]} 32. Na4 {[%emt 0:00:04]} Nxe4 {[%emt 0:00:53]} 33. Rxg6 {[%emt 0:01:43]} Nxf2 {[%emt 0:03:42]} 34. Rc6 {[%emt 0:02:19]} Ng4 {[%emt 0:00:05]} 35. Nxe5 {[%emt 0:00:59]} Rxe5 {[%emt 0:01:12]} 36. Rxe5 {[%emt 0:00:15]} Nh3+ {[%emt 0:03:55]} 37. Qxh3 {[%emt 0:00:25]} Nxe5 {[%emt 0:00:04]} 38. Rc8 {[%emt 0:01:19]} Ng4 {[%emt 0:00:15]} 39. Rxd8+ {[%emt 0:00:36]} Qxd8 {[%emt 0:00:04]} 40. Qg3 {[%emt 0:00:00]} Qc8 {[%emt 0:00:00]} 41. Bd1 {[%emt 0:19:46]} Qc1 {[%emt 0:03:15]} 42. Qf3 {[%emt 0:03:00]} Qd2 {[%emt 0:03:04]} 43. Be2 {[%emt 0:05:26]} b3 {[%emt 0:01:30]} 44. d6 {[%emt 0:03:17]} Qd4+ {[%emt 0:06:48]} 45. Kg2 {[%emt 0:00:04]} Qxa4 {[%emt 0:00:36]} 46. Qa8+ {[%emt 0:00:40]} Kh7 {[%emt 0:00:04]} 47. Bd3+ {[%emt 0:00:12]} g6 {[%emt 0:00:13]} 48. Qxa7 {[%emt 0:00:14]} Qf4 {[%emt 0:01:04]} 49. d7 {[%emt 0:01:08]} Qd2+ {[%emt 0:01:17]} 50. Kg1 {[%emt 0:00:43]} Qxd3 {[%emt 0:02:15]} 51. d8=Q {[%emt 0:00:07]} Qxd8 {[%emt 0:00:14]} 52. Qxf7+ {[%emt 0:00:04]} Kh8 {[%emt 0:00:05]} 53. Qxb3 {[%emt 0:00:17]} Qd4+ {[%emt 0:00:07]} 0-1

[Event "Icelandic-ch 2021"]
[Site "Kopavogur"]
[Date "2021.04.25"]
[Round "4.2"]
[White "Kjartansson, Gudmundur"]
[Black "Gretarsson, Hjorvar Steinn"]
[Result "1-0"]
[ECO "A21"]
[WhiteElo "2503"]
[BlackElo "2588"]
[Annotator "ChessBase"]
[PlyCount "77"]
[EventDate "2021.04.22"]
[EventType "tourn"]
[EventCountry "ISL"]
[SourceTitle "playchess.com"]
[Source "ChessBase"]
[SourceQuality "1"]
[TimeControl "40/5400+30:1800+30"]

1. c4 {[%emt 0:00:00]} e5 {[%emt 0:09:09]} 2. Nc3 {[%emt 0:00:00]} Bb4 {[%emt 0:01:04]} 3. Nd5 {[%emt 0:00:27]} Be7 {[%emt 0:00:05]} 4. d4 {[%emt 0:01:09]} d6 {[%emt 0:00:46]} 5. e4 {[%emt 0:00:38]} Nf6 {[%emt 0:01:53]} 6. Nxe7 {[%emt 0:00:38]} Qxe7 {[%emt 0:00:16]} 7. f3 {[%emt 0:00:09]} exd4 {[%emt 0:03:35]} 8. Qxd4 {[%emt 0:00:46]} Nc6 {[%emt 0:00:09]} 9. Qc3 {[%emt 0:00:57]} O-O {[%emt 0:06:59]} 10. Ne2 {[%emt 0:00:43]} Ne5 {[%emt 0:08:17]} 11. Bg5 {[%emt 0:10:23]} Re8 {[%emt 0:05:07]} 12. Qc2 {[%emt 0:05:35]} h6 {[%emt 0:06:49]} 13. Bh4 {[%emt 0:02:56]} c6 {[%emt 0:17:25]} 14. O-O-O {[%emt 0:05:45]} d5 {[%emt 0:14:37]} 15. cxd5 {[%emt 0:07:13]} cxd5 {[%emt 0:00:05]} 16. exd5 {[%emt 0:00:51]} Bd7 {[%emt 0:01:59]} 17. Nc3 {[%emt 0:03:58]} Rac8 {[%emt 0:00:44]} 18. Kb1 {[%emt 0:06:51]} b5 {[%emt 0:03:12]} 19. d6 {[%emt 0:17:10]} Qe6 {[%emt 0:01:11]} 20. Qb3 {[%emt 0:01:49]} Qf5+ {[%emt 0:02:30]} 21. Ka1 {[%emt 0:01:07]} Be6 {[%emt 0:04:19]} 22. Qxb5 {[%emt 0:12:36]} Rb8 {[%emt 0:02:08]} 23. Bd3 {[%emt 0:02:01]} Qh5 {[%emt 0:00:30]} 24. Qa4 {[%emt 0:03:51]} Bd7 {[%emt 0:00:51]} 25. Qd4 {[%emt 0:01:57]} Nc6 {[%emt 0:00:24]} 26. Qf2 {[%emt 0:00:41]} g5 {[%emt 0:02:50]} 27. Bg3 {[%emt 0:00:38]} Rb4 {[%emt 0:00:35]} 28. Qc5 {[%emt 0:03:47]} g4 {[%emt 0:02:46]} 29. Qxh5 {[%emt 0:00:58]} Nxh5 {[%emt 0:00:01]} 30. Bb5 {[%emt 0:04:32]} Nxg3 {[%emt 0:02:03]} 31. hxg3 {[%emt 0:00:16]} Rb8 {[%emt 0:00:12]} 32. Bxc6 {[%emt 0:00:39]} Bxc6 {[%emt 0:00:01]} 33. d7 {[%emt 0:00:28]} Rd8 {[%emt 0:00:05]} 34. Rxh6 {[%emt 0:00:20]} Rb6 {[%emt 0:00:46]} 35. Nd5 {[%emt 0:01:04]} Bxd5 {[%emt 0:02:04]} 36. Rxb6 {[%emt 0:00:16]} Bxf3 {[%emt 0:00:48]} 37. gxf3 {[%emt 0:01:30]} axb6 {[%emt 0:00:05]} 38. fxg4 {[%emt 0:00:17]} Kf8 {[%emt 0:00:06]} 39. a4 {[%emt 0:00:40]} 1-0